bitfinex-derivatives/quotes_ETHF0:USTF0_20250730
["timestamp","ask_amount","ask_price","bid_price","bid_amount"]
[1753835917300,22.3099,3766.3,3766.2,2.18951]
[1753835917505,44.1319,3766.3,3766.2,2.18951]
[1753835918007,44.1299,3766.3,3766.2,2.18951]
[1753835919215,22.3099,3766.3,3766.2,2.18951]
[1753835919508,44.1299,3766.3,3766.2,2.39391]
[1753835919710,22.3099,3766.3,3766.2,2.39391]
[1753835919903,44.1289,3766.3,3766.2,2.39391]
[1753835920208,22.3099,3766.3,3766.2,2.39391]
[1753835920409,44.1289,3766.3,3766.2,2.39391]
[1753835921509,44.1289,3766.3,3766.2,1.6584]
[1753835922401,42.16611,3766.3,3766.1,0.53112]
[1753835922605,4.0993,3766.2,3766.1,2.18952]
[1753835923008,4.0993,3766.2,3766.1,2.88442]
[1753835924014,25.9153,3766.2,3766.1,3.21152]
[1753835924811,25.9153,3766.2,3766.1,2.88442]
[1753835925416,4.0993,3766.2,3766.1,2.88442]
[1753835925611,25.9143,3766.2,3766.1,2.88442]
[1753835926010,4.0993,3766.2,3766.1,2.88442]
[1753835926308,25.9133,3766.2,3766.1,2.3533]
[1753835927514,25.9123,3766.2,3766.1,2.3533]
[1753835928014,25.9133,3766.2,3766.1,2.3533]
[1753835928521,25.9123,3766.2,3766.1,2.3533]
[1753835929114,25.9123,3766.2,3766.1,2.6384]
[1753835929312,18.2106,3766.3,3766.2,1.81041]
[1753835929515,18.2106,3766.3,3766.2,3.80261]
[1753835929716,0.7852,3766.8,3766.7,2.09544]
[1753835929912,0.7852,3766.8,3766.7,3.80254]
[1753835929913,60.8442,3766.8,3766.7,3.80254]
[1753835930119,61.6455,3766.8,3766.7,3.32554]
[1753835930419,62.7831,3766.8,3766.7,3.32554]
[1753835930810,64.587,3766.8,3766.7,3.32554]
[1753835931417,3.3934,3766.8,3766.7,3.32554]
[1753835931622,62.723,3766.8,3766.7,3.80254]
[1753835932021,62.723,3766.8,3766.7,3.32554]
[1753835932219,63.8606,3766.8,3766.7,3.32554]
[1753835932422,64.584,3766.8,3766.7,3.32554]
[1753835933026,63.4464,3766.8,3766.7,3.32554]
[1753835933225,63.4464,3766.8,3766.7,3.80254]
[1753835933423,1.8069,3767.4,3767.3,3.04036]
[1753835933626,65.11394,3767.4,3767.3,2.5094]
[1753835934123,1.3192,3767.4,3767.3,3.32546]
[1753835934324,4.731,3767.9,3767.8,2.7945]
[1753835934529,64.78,3767.9,3767.8,2.5094]
[1753835934725,62.9731,3767.9,3767.4,0.1782]
[1753835934928,4.531,3767.5,3767.4,1.9831]
[1753835935132,26.336,3767.5,3767.4,2.51404]
[1753835935424,26.336,3767.5,3767.4,3.04034]
[1753835935625,64.579,3767.5,3767.4,3.04034]
[1753835936034,64.579,3767.5,3767.4,2.5094]
[1753835936528,63.4414,3767.5,3767.4,2.7945]
[1753835936831,64.579,3767.5,3767.4,2.7945]
[1753835937227,64.576,3767.5,3767.4,2.7945]
[1753835937626,1.5865,3767.4,3766.7,1.0519]
[1753835937826,1.3192,3766.9,3766.8,3.80253]
[1753835938026,23.6687,3766.9,3766.8,6.5926605]
[1753835938224,1.8069,3766.6,3766.5,6.3605305]
[1753835938528,26.332,3766.6,3766.5,2.7945]
[1753835939527,23.6687,3766.6,3766.5,2.7945]
[1753835939821,1.8677,3766.6,3766.5,3.2715]
[1753835940027,1.1376,3767.7,3766.7,2.3309]
[1753835940336,24.3911,3767.4,3767.3,2.7945]
[1753835940734,25.1924,3767.4,3767.3,2.7945]
[1753835940927,26.33,3767.4,3767.3,2.7945]
[1753835941928,26.86094,3767.4,3767.3,2.7945]
[1753835942126,26.86094,3767.4,3766.4,1.52069]
[1753835942127,1.0825,3766.5,3766.4,1.52069]
[1753835942428,26.33,3766.5,3766.4,3.32559]
[1753835942738,26.33,3766.5,3766.4,2.7945]
[1753835943036,4.531,3766.4,3766.3,2.7945]
[1753835943335,3.3934,3766.4,3766.3,2.7945]
[1753835943636,1.8677,3766.4,3766.3,3.2715]
[1753835944931,1.9389,3766.7,3766.6,2.7945]
[1753835944932,0.7852,3766.7,3766.6,2.7945]
[1753835945130,23.1132,3766.7,3766.6,3.2715]
[1753835945332,24.463,3766.7,3766.6,3.80256]
[1753835945536,24.463,3766.7,3766.6,3.32556]
[1753835946140,4.531,3766.6,3766.5,1.58297]
[1753835946430,4.531,3766.6,3766.5,8.635328]
[1753835946647,21.794,3766.7,3766.5,8.635328]
[1753835946836,0.7852,3767.0,3766.9,1.5644]
[1753835947034,21.793,3767.0,3766.9,1.5644]
[1753835947231,21.793,3767.0,3766.9,8.58139897]
[1753835947434,23.6607,3767.0,3766.9,8.58139897]
[1753835947641,24.462,3767.0,3766.9,8.10439897]
[1753835948026,24.462,3767.0,3766.9,8.58139897]
[1753835948333,24.462,3767.0,3766.9,8.10439897]
[1753835948530,25.1864,3767.0,3766.9,8.10439897]
[1753835948731,23.6607,3767.0,3766.9,8.10439897]
[1753835949031,24.461,3767.0,3766.9,8.10439897]
[1753835949236,25.1854,3767.0,3766.9,8.10439897]
[1753835949532,1.8069,3766.7,3766.6,2.33595]
[1753835949730,26.322,3766.7,3766.6,2.33595]
[1753835949928,26.322,3766.7,3766.6,8.34978513]
[1753835950132,26.322,3766.7,3766.6,8.63488513]
[1753835950827,25.1844,3766.7,3766.6,8.63488513]
[1753835951138,3.3934,3766.7,3766.6,8.63488513]
[1753835951337,25.1824,3766.7,3766.6,9.11188513]
[1753835952034,25.1824,3766.7,3766.6,8.63488513]
[1753835952233,4.531,3766.7,3766.6,8.63488513]
[1753835952538,26.319,3766.7,3766.6,8.63488513]
[1753835953237,1.8069,3766.1,3766.0,2.3312]
[1753835953438,26.318,3766.1,3766.0,1.28414]
[1753835953843,26.318,3766.1,3766.0,2.35524]
[1753835954629,26.318,3766.1,3766.0,1.8241]
[1753835955031,26.318,3766.1,3766.0,2.3777]
[1753835955233,25.1804,3766.1,3766.0,2.7636]
[1753835955540,24.456,3766.1,3766.0,2.7636]
[1753835955733,24.455,3766.1,3766.0,2.7636]
[1753835957542,25.1735,3766.1,3766.0,2.7636]
[1753835958033,2.7181,3766.5,3766.4,2.588]
[1753835958242,24.5021,3766.5,3766.4,3.26748]
[1753835958629,25.2206,3766.5,3766.4,3.26748]
[1753835958837,26.2797,3766.5,3766.4,2.4989]
[1753835959042,26.2797,3766.5,3766.4,2.3505]
[1753835959329,4.4957,3766.5,3766.4,2.3505]
[1753835959536,4.4957,3765.9,3765.8,1.9453]
[1753835959732,26.2787,3765.9,3765.8,2.32807]
[1753835960129,2.7147,3765.8,3765.6,3.32750628]
[1753835960340,23.564,3765.7,3765.6,5.65560628]
[1753835960643,26.2787,3765.7,3765.6,3.0301]
[1753835961641,26.2787,3765.7,3765.6,0.5312]
[1753835962340,26.2787,3765.7,3765.6,2.3281]
[1753835963841,4.4957,3765.7,3765.6,3.0301]
[1753835964141,26.2767,3765.7,3765.6,3.2676]
[1753835967040,4.4957,3765.7,3765.6,3.2676]
[1753835967245,26.2757,3765.7,3765.6,3.0301]
[1753835967446,26.2757,3765.7,3765.6,2.3281]
[1753835967840,1.8784,3765.6,3765.4,1.60232]
[1753835968047,21.78,3765.7,3765.4,1.60232]
[1753835968048,26.2737,3765.5,3765.4,2.32812]
[1753835968439,26.2737,3765.5,3765.4,3.01842]
[1753835969948,26.2737,3765.5,3765.4,3.23712]
[1753835970444,4.4957,3765.4,3765.3,3.32750628]
[1753835970848,4.4957,3765.3,3765.2,3.87734734]
[1753835971045,26.2717,3765.3,3765.2,5.67424734]
[1753835971445,26.2717,3765.3,3765.2,6.58324734]
[1753835971751,26.2717,3765.3,3765.2,3.25574106]
[1753835973550,26.2717,3765.3,3765.2,0.01859106]
[1753835975952,26.2717,3765.3,3765.2,2.34674106]
[1753835976149,26.2717,3765.3,3765.2,1.81549106]
[1753835977352,26.2687,3765.3,3765.2,1.95219106]
[1753835977647,38.244,3766.2,3765.2,1.95219106]
[1753835977648,0.8193,3765.7,3765.6,2.4647]
[1753835977851,39.0683,3765.9,3765.8,2.02927]
[1753835978147,39.0683,3765.9,3765.8,3.67247]
[1753835978341,60.8393,3765.9,3765.8,2.7059]
[1753835978546,4.4957,3765.8,3765.7,6.17423228]
[1753835978745,4.4957,3765.8,3765.7,6.94653228]
[1753835979245,4.4957,3765.8,3765.7,8.45303228]
[1753835979246,0.8193,3765.8,3765.7,8.45303228]
[1753835979451,4.4957,3766.3,3766.2,3.23701]
[1753835979641,26.2657,3766.3,3766.2,3.23701]
[1753835980248,26.2647,3766.3,3766.2,2.7059]
[1753835980448,26.2647,3766.3,3766.2,1.7969]
[1753835980650,4.4957,3766.1,3766.0,3.01834]
[1753835980854,26.2647,3766.1,3766.0,2.4872]
[1753835981250,26.2637,3766.1,3766.0,1.7969]
[1753835981552,1.8818,3765.3,3765.2,6.58324734]
[1753835981747,23.6498,3765.3,3765.2,3.69114106]
[1753835982055,26.2637,3765.3,3765.2,3.25574106]
[1753835982946,3.4366,3765.3,3765.2,3.25574106]
[1753835983148,1.8818,3766.0,3765.9,2.02926]
[1753835983352,23.6468,3766.0,3765.9,2.46466]
[1753835983753,23.6468,3766.0,3765.9,3.67246]
[1753835985354,1.32736,3767.5,3765.9,6.45044496]
[1753835985661,2.9144,3766.7,3766.6,1.7393]
[1753835985856,24.6774,3766.7,3766.6,1.7393]
[1753835986057,26.2634,3766.7,3766.6,1.7393]
[1753835986256,1.2781,3766.3,3766.2,1.76521]
[1753835986558,26.2634,3766.3,3766.2,6.02848752]
[1753835987054,0.8113,3766.8,3766.2,7.87482193]
[1753835987256,40.0467,3767.4,3767.3,0.7188]
[1753835987459,62.33864,3767.4,3767.3,1.7393]
[1753835987654,1.7997,3767.0,3766.9,0.53101]
[1753835987854,26.2614,3767.0,3766.9,0.53101]
[1753835988054,4.5004,3766.8,3766.7,5.30877141]
[1753835988249,4.5004,3766.8,3766.4,1.0205]
[1753835988461,1.7997,3766.5,3766.4,2.07509]
[1753835988662,26.2604,3766.5,3766.4,2.07509]
[1753835988849,23.5911,3766.5,3766.4,7.38386141]
[1753835989054,23.5911,3766.5,3766.4,8.82226141]
[1753835989362,26.2604,3766.5,3766.4,8.40436141]
[1753835989660,4.5004,3766.5,3766.4,8.40436141]
[1753835989962,26.2604,3766.5,3766.4,8.40436141]
[1753835991053,23.5911,3766.5,3766.4,8.40436141]
[1753835991257,38.247,3767.4,3766.4,7.87327141]
[1753835991465,38.247,3767.4,3767.2,1.7393]
[1753835991466,26.2564,3767.3,3767.2,1.7393]
[1753835991663,26.2564,3767.3,3767.2,2.2546]
[1753835991965,4.5004,3767.3,3767.2,2.2546]
[1753835992165,26.2564,3767.3,3767.2,2.2546]
[1753835992463,26.2564,3767.3,3767.2,2.5645]
[1753835992464,26.2554,3767.3,3767.2,2.5645]
[1753835992961,26.2554,3767.3,3767.2,2.2546]
[1753835993157,4.5004,3767.3,3767.2,2.2546]
[1753835993358,26.2554,3767.3,3767.2,2.2546]
[1753835993961,4.5004,3767.3,3767.2,2.2546]
[1753835994164,26.2534,3767.3,3767.2,2.5645]
[1753835995366,4.5004,3767.3,3767.2,2.5645]
[1753835995867,26.2514,3767.3,3767.2,2.5645]
[1753835997064,26.78236,3767.3,3767.2,2.5645]
[1753835997268,26.2494,3767.3,3767.2,2.5645]
[1753835997463,26.2484,3767.3,3767.2,2.5645]
[1753835997961,4.5004,3767.3,3767.2,2.5645]
[1753835998162,25.1337,3767.3,3767.2,2.5645]
[1753835998359,26.2484,3767.3,3767.2,2.5645]
[1753835999970,26.2444,3767.3,3767.2,2.5645]
[1753836000166,0.531,3767.0,3766.7,0.53104]
[1753836000368,4.5004,3766.8,3766.7,1.88434]
[1753836000571,26.2444,3766.8,3766.7,2.07504]
[1753836000773,25.1297,3766.8,3766.7,3.09554]
[1753836001170,3.3857,3766.8,3766.7,3.09554]
[1753836001370,25.1297,3766.8,3766.7,3.09554]
[1753836002274,25.1277,3766.8,3766.7,3.09554]
[1753836003269,26.2414,3766.8,3766.7,3.09554]
[1753836003577,22.5157,3766.8,3766.7,3.09554]
[1753836004073,23.0505,3766.8,3766.7,3.09554]
[1753836004274,23.5711,3766.8,3766.7,3.09554]
[1753836004874,24.3824,3766.8,3766.7,3.09554]
[1753836005074,26.2404,3766.8,3766.7,0.53104]
[1753836005264,4.5004,3766.8,3766.7,1.24984]
[1753836005469,26.2394,3766.8,3766.7,3.09554]
[1753836006173,4.5004,3766.8,3766.7,3.09554]
[1753836006374,25.1237,3766.8,3766.7,3.09554]
[1753836007180,3.3857,3766.8,3766.7,3.09554]
[1753836007377,25.1237,3766.8,3766.7,3.09554]
[1753836007570,3.3857,3766.8,3766.7,3.09554]
[1753836007774,38.247,3767.4,3767.3,2.78556]
[1753836007977,1.7997,3767.8,3767.7,0.53089]
[1753836008275,4.5004,3767.8,3767.7,3.09539]
[1753836008478,26.2364,3767.8,3767.7,3.09539]
[1753836008679,3.3857,3767.8,3767.7,3.09539]
[1753836008975,23.5661,3767.8,3767.7,8.82290704]
[1753836009180,25.1207,3767.8,3767.7,8.40500704]
[1753836009381,26.2354,3767.8,3767.7,8.40500704]
[1753836009673,24.3774,3767.8,3767.7,8.40500704]
[1753836009869,0.2,3767.9,3767.7,8.82290704]
[1753836010071,0.9747,3767.9,3767.8,2.9824]
[1753836010374,22.7087,3767.9,3767.8,2.9824]
[1753836010780,0.9747,3767.9,3767.8,2.9824]
[1753836010973,22.7087,3767.9,3767.8,2.9824]
[1753836011275,3.3857,3768.0,3767.9,2.3979]
[1753836011480,3.3857,3768.5,3768.4,2.9287]
[1753836011671,26.2324,3768.5,3768.4,1.7393]
[1753836011873,4.5004,3768.2,3768.1,1.24964]
[1753836012073,26.2304,3768.2,3768.1,1.24964]
[1753836012275,26.2304,3768.2,3768.1,7.5773618]
[1753836013079,26.2304,3768.2,3768.1,7.6965618]
[1753836013477,1.7997,3768.2,3767.9,0.53087]
[1753836013782,4.3951,3768.0,3767.9,5.83851433]
[1753836013987,26.1241,3768.0,3767.9,5.83851433]
[1753836014582,1.8106,3767.6,3767.4,0.53094]
[1753836014778,26.0063,3767.5,3767.4,0.53094]
[1753836015084,26.0053,3767.5,3767.4,2.59714]
[1753836015479,4.2783,3767.5,3767.4,2.59714]
[1753836015677,26.0043,3767.5,3767.4,2.59714]
[1753836016578,4.2783,3767.5,3767.4,2.74514]
[1753836017082,26.0033,3767.5,3767.4,2.74514]
[1753836018587,4.2783,3767.5,3767.4,2.74514]
[1753836018889,26.0013,3767.5,3767.4,2.74514]
[1753836020082,26.0003,3767.5,3767.4,2.74514]
[1753836020584,2.5954,3767.4,3767.2,1.0064]
[1753836020777,4.2783,3767.3,3767.2,1.53737]
[1753836020980,4.2783,3767.3,3767.2,6.8460005]
[1753836021179,4.2783,3767.3,3767.2,1.19227]
[1753836021386,4.2783,3767.3,3767.2,2.29117]
[1753836022086,4.2783,3767.3,3767.2,2.19867]
[1753836022977,4.2783,3767.3,3767.2,2.50467]
[1753836023184,25.9983,3767.3,3767.2,2.74517]
[1753836023684,25.9973,3767.3,3767.2,2.74517]
[1753836024183,4.2783,3767.3,3767.2,2.74517]
[1753836024385,25.9963,3767.3,3767.2,2.74517]
[1753836024584,4.2783,3767.3,3767.2,2.74517]
[1753836024884,25.9963,3767.3,3767.2,2.74517]
[1753836025287,25.9963,3767.3,3767.2,2.59717]
[1753836025483,25.9963,3767.3,3767.2,2.29117]
[1753836027087,25.9963,3767.3,3767.2,2.19867]
[1753836028382,25.9933,3767.3,3767.2,2.65267]
[1753836028683,25.9933,3767.3,3767.2,2.74517]
[1753836029387,25.9923,3767.3,3767.2,2.74517]
[1753836029687,25.9923,3767.3,3767.2,2.59717]
[1753836029988,25.9923,3767.3,3767.2,2.19867]
[1753836030475,25.9923,3767.3,3767.2,0.53097]
[1753836030681,1.6829,3766.8,3766.7,4.51984628]
[1753836030878,25.9923,3766.8,3766.7,2.19874]
[1753836031082,25.9923,3766.8,3766.7,7.50765233]
[1753836031388,25.9923,3766.8,3766.7,7.90615233]
[1753836031588,25.9923,3766.8,3766.7,8.05415233]
[1753836032289,25.9903,3766.8,3766.7,8.05415233]
[1753836033383,23.4706,3766.8,3766.7,8.05415233]
[1753836033588,24.2554,3766.8,3766.7,8.05415233]
[1753836033889,2.5444,3766.8,3766.7,8.05415233]
[1753836034086,22.4604,3766.8,3766.7,8.22745233]
[1753836034290,38.231,3767.9,3767.4,1.0579]
[1753836034291,3.6046,3767.5,3767.4,1.0579]
[1753836034592,24.2544,3767.5,3767.4,1.58884]
[1753836034794,24.9281,3767.5,3767.4,2.66974]
[1753836035092,25.9883,3767.5,3767.4,2.66974]
[1753836036784,38.76188,3767.9,3767.4,2.66974]
[1753836036785,1.8106,3768.6,3767.4,1.0809]
[1753836036992,4.2783,3768.1,3768.0,2.66965]
[1753836037188,25.9853,3768.1,3768.0,2.66965]
[1753836037688,4.2783,3768.1,3768.0,2.66965]
[1753836037889,25.9843,3768.1,3768.0,2.1388]
[1753836038190,26.51515,3768.1,3768.0,0.6613]
[1753836038392,26.51515,3768.1,3767.8,1.53728]
[1753836038592,1.6829,3767.9,3767.8,2.19858]
[1753836038785,4.2783,3767.9,3767.8,5.30778519]
[1753836038982,2.7431,3767.3,3767.2,1.6677]
[1753836039185,25.9823,3767.3,3767.2,1.6677]
[1753836039382,25.9823,3767.3,3767.2,7.50673693]
[1753836040093,25.76286,3767.3,3767.0,3.32750628]
[1753836040286,4.2783,3766.9,3766.8,3.98880628]
[1753836040591,25.9813,3766.9,3766.6,9.24196861]
[1753836040790,4.2783,3766.7,3766.6,8.63641861]
[1753836040981,1.6829,3766.1,3766.0,4.74780447]
[1753836041182,25.9803,3766.1,3766.0,4.74780447]
[1753836041385,25.9803,3766.1,3766.0,5.30961704]
[1753836041591,4.2783,3765.9,3765.8,0.19650278]
[1753836042187,4.2783,3765.9,3765.8,2.85860278]
[1753836042389,4.2783,3765.9,3765.8,3.61780278]
[1753836043197,25.9813,3765.9,3765.8,3.61780278]
[1753836044398,25.9813,3765.9,3765.8,2.35950278]
[1753836044997,4.2783,3765.9,3765.8,2.35950278]
[1753836045195,25.9823,3765.9,3765.8,3.14390278]
[1753836045597,4.2783,3765.9,3765.8,3.14390278]
[1753836045798,25.9803,3765.9,3765.8,3.14390278]
[1753836046192,25.9803,3765.9,3765.8,3.65560278]
[1753836048302,25.9813,3765.9,3765.8,3.65560278]
[1753836048497,4.2783,3765.9,3765.8,3.65560278]
[1753836048696,25.9793,3765.9,3765.8,3.65560278]
[1753836049298,4.2783,3765.9,3765.8,4.18677278]
[1753836049496,4.2783,3765.9,3765.8,3.65560278]
[1753836049697,25.9783,3765.9,3765.8,3.65560278]
[1753836051103,26.50946,3765.9,3765.8,0.85780278]
[1753836051902,26.50946,3765.9,3765.8,0.19650278]
[1753836058706,3.53,3765.3,3765.2,2.33053106]
[1753836058904,26.52624,3765.3,3765.2,3.58889106]
[1753836059907,25.995,3765.3,3765.2,3.58889106]
[1753836060208,25.995,3765.3,3765.2,4.37689106]
[1753836060711,25.994,3765.3,3765.2,4.37689106]
[1753836061404,25.994,3765.3,3765.2,3.58889106]
[1753836069110,25.986,3765.3,3765.2,4.37689106]
[1753836069914,25.986,3765.3,3765.2,3.58889106]
[1753836070310,30.986,3765.3,3765.2,1.06e-06]
[1753836070512,4.83135,3764.5,3763.8,3.52772078]
[1753836070722,26.51535,3764.5,3764.1,1.0052]
[1753836072115,26.51535,3764.5,3763.8,0.1966072]
[1753836072310,2.24452,3764.1,3764.0,0.7305]
[1753836072508,25.985,3764.1,3764.0,3.5703]
[1753836074313,25.985,3764.1,3763.8,7.2e-06]
[1753836074314,4.3306,3763.9,3763.8,7.2e-06]
[1753836074509,4.3306,3762.7,3762.6,3.33263794]
[1753836074710,26.0126,3762.7,3762.6,3.33263794]
[1753836075009,3.2825,3762.3,3762.2,4.37560589]
[1753836075410,24.9655,3762.3,3762.2,4.37560589]
[1753836075613,26.0136,3762.3,3762.2,4.37560589]
[1753836076115,1.7369,3762.0,3761.9,1.0353]
[1753836076313,26.54432,3762.0,3761.9,2.2629]
[1753836076506,1.0481,3761.4,3760.0,5.54280447]
[1753836076813,0.53188,3760.8,3759.9,0.795]
[1753836077008,1.7774,3760.1,3760.0,4.357]
[1753836077312,1.32945,3761.6,3760.5,3.5691]
[1753836077612,3.81425,3761.7,3761.6,0.6998]
[1753836077806,3.53491,3761.3,3761.2,1.0353]
[1753836078011,0.53187,3760.9,3760.6,39.0559]
[1753836078204,3.00207,3760.9,3760.8,2.5267]
[1753836078419,1.8604,3761.3,3760.8,4.357]
[1753836078420,0.53185,3761.1,3760.8,4.357]
[1753836078610,0.53173,3761.8,3761.7,4.357]
[1753836079410,0.53179,3761.4,3761.3,2.3415]
[1753836079611,4.86239,3761.4,3761.3,2.3415]
[1753836079812,1.2622,3761.0,3760.9,3.5691]
[1753836081113,0.7333,3761.6,3761.3,1.8303]
[1753836081316,2.4867,3762.1,3762.0,3.5691]
[1753836081617,1.955,3762.1,3762.0,3.5691]
[1753836081822,3.8017,3762.0,3761.9,3.5691]
[1753836082119,4.3306,3762.0,3761.9,3.5691]
[1753836082316,1.2622,3762.0,3761.9,3.5691]
[1753836082618,3.00192,3761.9,3761.8,2.5301]
[1753836082824,4.86232,3761.9,3761.8,3.0413]
[1753836083015,4.86232,3761.9,3761.8,3.5691]
[1753836083213,1.7369,3761.2,3761.1,2.7741]
[1753836083411,0.8123,3761.5,3761.2,0.53182]
[1753836083710,0.7333,3761.5,3761.4,4.065]
[1753836083916,0.7333,3761.9,3761.8,1.2276]
[1753836084110,0.7333,3761.9,3761.8,3.5691]
[1753836084317,2.4702,3761.9,3761.4,1.8303]
[1753836084521,1.32914,3762.4,3761.4,2.5338]
[1753836084522,4.3306,3761.5,3761.4,2.5338]
[1753836085016,0.7333,3761.5,3761.4,4.065]
[1753836085221,0.53173,3761.9,3761.7,1.7388]
[1753836085415,2.785,3761.8,3761.7,3.5691]
[1753836085617,1.75345,3761.7,3761.6,3.5691]
[1753836085816,1.955,3761.7,3761.6,3.5691]
[1753836086023,0.7333,3761.7,3761.6,3.27]
[1753836086220,0.7333,3761.7,3761.6,4.065]
[1753836086621,1.2622,3762.0,3761.9,3.5691]
[1753836086830,0.7333,3762.0,3761.9,3.5691]
[1753836087522,0.7333,3762.0,3761.9,4.065]
[1753836088426,0.7333,3762.0,3761.9,3.5691]
[1753836088723,1.2622,3762.0,3761.9,3.5691]
[1753836089920,2.32876811,3764.9,3761.7,0.53175]
[1753836089921,0.8123,3762.7,3762.4,0.53164]
[1753836090121,1.7369,3762.7,3762.6,3.5691]
[1753836090320,3.5973,3762.7,3762.6,3.5691]
[1753836090722,0.7333,3762.7,3762.6,3.5691]
[1753836090919,4.3306,3762.7,3762.6,3.5691]
[1753836091325,4.3306,3762.4,3762.3,4.10076]
[1753836091925,1.2622,3762.4,3762.3,4.10076]
[1753836092122,1.2622,3763.0,3762.9,2.88967]
[1753836092322,1.2622,3763.2,3763.1,2.8693]
[1753836092527,4.86214,3763.2,3763.1,3.5691]
[1753836094732,2.4702,3762.8,3762.7,3.5895]
[1753836095031,2.4702,3762.8,3762.7,4.1007]
[1753836095825,1.73956,3763.1,3763.0,1.211]
[1753836096026,4.12886,3763.1,3763.0,1.7388]
[1753836096230,1.7369,3762.9,3762.8,3.57288]
[1753836096432,4.3306,3762.9,3762.8,3.57288]
[1753836096729,4.3306,3762.9,3762.8,4.10068]
[1753836098029,1.0481,3763.3,3763.2,1.211]
[1753836098328,3.5973,3763.3,3763.2,3.5691]
[1753836098523,4.3306,3763.3,3763.2,3.5691]
[1753836101725,4.3306,3763.3,3763.2,1.211]
[1753836101928,4.32460188,3763.3,3763.2,0.6998]
[1753836103126,4.32460188,3763.3,3763.2,1.211]
[1753836103526,1.77140188,3763.3,3763.2,3.5691]
[1753836103723,1.9553,3763.9,3763.8,1.8031]
[1753836104041,0.9793,3763.9,3763.8,4.1651]
[1753836104235,2.7346,3763.9,3763.8,3.674]
[1753836104436,3.8276,3763.9,3763.8,3.674]
[1753836104825,2.7346,3763.9,3763.8,3.674]
[1753836105130,1.54157388,3765.0,3763.8,3.674]
[1753836105131,0.7793,3764.7,3764.4,2.40226]
[1753836105329,4.17283,3764.7,3764.6,3.674]
[1753836105533,3.6415,3764.7,3764.6,1.2544]
[1753836105734,4.4208,3764.7,3764.6,1.2544]
[1753836106136,4.4208,3764.7,3764.6,3.674]
[1753836106541,0.7793,3764.7,3764.6,3.674]
[1753836106740,4.4208,3764.7,3764.6,3.674]
[1753836107132,1.8591,3764.7,3764.6,3.674]
[1753836107331,0.7793,3764.7,3764.6,4.1651]
[1753836107534,1.3111,3765.0,3764.9,3.674]
[1753836107733,2.5346,3765.0,3764.9,3.674]
[1753836107938,4.4208,3765.0,3764.9,3.674]
[1753836108132,0.7793,3765.0,3764.9,3.674]
[1753836108337,0.7793,3765.0,3764.9,4.1651]
[1753836109139,2.5346,3765.0,3764.9,3.674]
[1753836109334,1.7553,3764.6,3764.5,3.15335]
[1753836109534,4.4208,3764.6,3764.5,25.89435]
[1753836110339,4.4208,3764.6,3764.5,4.20535]
[1753836110539,2.5346,3764.6,3764.5,25.89435]
[1753836110739,0.7793,3764.6,3764.5,26.38545]
[1753836114439,2.5346,3764.9,3764.8,3.674]
[1753836115247,3.6276,3764.9,3764.8,3.674]
[1753836115544,4.4208,3764.9,3764.8,4.20531]
[1753836116643,1.8591,3765.2,3765.1,1.8031]
[1753836116842,0.018,3765.3,3765.2,1.8709]
[1753836117045,0.018,3765.3,3765.2,4.1651]
[1753836117745,0.9793,3765.9,3765.8,3.674]
[1753836117952,1.5111,3765.9,3765.8,25.88717]
[1753836118149,1.5111,3765.9,3765.8,31.19890228]
[1753836118338,0.2,3765.9,3765.8,31.19890228]
[1753836118645,1.7553,3767.0,3766.9,2.33411]
[1753836118838,1.3111,3767.0,3766.9,25.88701]
[1753836119246,2.5346,3767.3,3767.2,3.674]
[1753836119547,2.5346,3767.3,3767.2,25.356]
[1753836119741,4.4208,3767.3,3767.2,25.356]
[1753836120551,4.4208,3767.3,3767.2,25.351]
[1753836122152,4.4208,3767.2,3767.1,25.351]
[1753836123948,2.8483,3767.2,3766.8,1.8709]
[1753836124256,4.4208,3767.0,3766.9,25.87801]
[1753836124742,4.4208,3767.0,3766.9,4.20501]
[1753836124944,4.4208,3767.0,3766.9,3.674]
[1753836125545,4.4208,3767.0,3766.9,25.347]
[1753836125955,4.4208,3767.0,3766.9,3.674]
[1753836126155,4.4208,3767.0,3766.9,25.344]
[1753836126847,2.6523,3767.0,3766.9,25.344]
[1753836127049,3.3278,3767.0,3766.9,25.344]
[1753836128354,4.4208,3767.0,3766.9,25.344]
[1753836128747,4.4208,3767.0,3766.9,3.674]
[1753836128952,3.6276,3766.8,3766.7,0.53104]
[1753836129154,4.4208,3766.8,3766.7,22.19904]
[1753836129455,4.4208,3766.8,3766.7,3.15304]
[1753836129652,4.4208,3766.8,3766.7,25.87304]
[1753836129853,4.4208,3766.8,3766.7,4.20504]
[1753836130254,4.4208,3766.8,3766.7,25.87204]
[1753836131156,4.4208,3766.8,3766.7,4.20504]
[1753836131359,4.4208,3766.8,3766.7,25.87204]
[1753836131863,4.4208,3766.8,3766.7,4.20504]
[1753836132750,4.4208,3766.8,3766.7,0.536]
[1753836133056,4.4208,3766.5,3766.4,4.20509]
[1753836133355,4.4208,3766.5,3766.4,9.51470704]
[1753836133548,4.4208,3766.5,3766.4,31.17970704]
[1753836134162,4.4208,3766.5,3766.4,9.51470704]
[1753836134359,4.4208,3766.5,3766.4,31.17970704]
[1753836134560,4.4208,3766.5,3766.4,9.51470704]
[1753836134760,4.4208,3766.5,3766.4,31.17970704]
[1753836134954,4.4208,3766.5,3766.4,31.17870704]
[1753836135156,4.4208,3766.5,3766.4,9.51470704]